bitfinex/quotes_ETHUSD_20220311
["timestamp","ask_amount","ask_price","bid_price","bid_amount"]
[1646988997758,0.00359372,2599.2,2598.9,0.24547801]
[1646988998162,0.00359372,2599.2,2598.9,0.24467801]
[1646988998363,1.179,2599.7,2598.9,0.24547801]
[1646988998566,1.09509946,2599.6,2598.9,0.24627801]
[1646988998763,0.00359382,2599.2,2598.9,0.24627801]
[1646988998968,0.00359382,2599.2,2598.9,0.24707801]
[1646988999164,0.00359382,2599.2,2598.9,0.24627801]
[1646988999564,1.09509946,2599.6,2598.9,0.24707801]
[1646988999969,0.00359382,2599.2,2598.9,0.24787801]
[1646989000165,0.00359382,2599.2,2599.0,1.02789534]
[1646989000366,0.00359382,2599.2,2599.1,0.1923]
[1646989000609,0.00359382,2599.2,2599.1,0.3499]
[1646989000814,1.01060648,2599.8,2599.1,0.3499]
[1646989000815,1.01060648,2599.8,2599.1,0.3491]
[1646989001017,0.00359372,2599.3,2599.1,0.1536]
[1646989001216,0.00359372,2599.3,2599.2,0.1448]
[1646989001418,0.00359372,2599.3,2599.2,0.144]
[1646989001620,0.00359372,2599.3,2599.1,0.152]
[1646989001817,0.00359372,2599.3,2599.1,0.1528]
[1646989002017,0.97032222,2599.4,2599.2,0.1448]
[1646989002216,0.00359367,2599.3,2599.1,0.1528]
[1646989002417,0.00359367,2599.3,2599.1,0.1536]
[1646989002718,0.00359367,2599.3,2598.9,0.07907801]
[1646989002918,0.00359367,2599.3,2599.2,0.1456]
[1646989003117,0.00359367,2599.3,2599.0,0.1923]
[1646989003318,1.2143,2599.7,2599.0,0.1923]
[1646989003517,0.00359375,2599.2,2599.1,0.1536]
[1646989003716,0.00359375,2599.2,2599.1,0.1544]
[1646989004117,0.00359375,2599.2,2599.1,0.1632]
[1646989004365,0.00359375,2599.2,2599.1,0.1616]
[1646989004553,0.89653202,2599.6,2599.1,0.1592]
[1646989004752,0.00359371,2599.3,2599.1,0.1568]
[1646989004953,0.00359371,2599.3,2599.1,0.156]
[1646989005152,0.00359371,2599.3,2599.1,0.1568]
[1646989005554,0.00359371,2599.3,2599.1,0.1576]
[1646989005753,0.89653202,2599.6,2599.1,0.1584]
[1646989005954,0.89653202,2599.6,2599.2,0.1496]
[1646989005955,0.00359367,2599.3,2599.2,0.1496]
[1646989006156,0.00359367,2599.3,2599.2,0.1504]
[1646989006356,0.00359367,2599.3,2599.1,0.1584]
[1646989006556,0.00359367,2599.3,2599.2,0.1923]
[1646989006759,0.89653202,2599.6,2599.2,0.1923]
[1646989007162,0.89653202,2599.6,2599.0,0.08603932]
[1646989007163,0.00359367,2599.3,2599.1,0.1923]
[1646989007460,0.00359367,2599.3,2598.9,0.1632]
[1646989007663,0.00359367,2599.3,2599.0,0.1568]
[1646989007859,0.00359367,2599.3,2599.0,0.156]
[1646989008101,2.81996392,2599.6,2599.1,0.144]
[1646989008307,2.81996392,2599.6,2598.9,0.16]
[1646989008308,0.00359371,2599.3,2598.9,0.16]
[1646989008604,0.00359371,2599.3,2598.9,0.1608]
[1646989009306,2.81996392,2599.6,2598.9,0.16]
[1646989009511,0.00359375,2599.2,2598.9,0.1592]
[1646989009706,0.00359375,2599.2,2598.9,0.156]
[1646989009906,0.00359375,2599.2,2598.9,0.1576]
[1646989010107,0.00359375,2599.2,2598.9,0.1584]
[1646989010308,0.00359375,2599.2,2598.9,0.1608]
[1646989010508,2.81996392,2599.6,2598.9,0.1616]
[1646989010707,0.00359379,2599.2,2598.9,0.1608]
[1646989010911,0.00359379,2599.2,2598.9,0.1592]
[1646989011107,0.00359379,2599.2,2598.9,0.1608]
[1646989011308,0.00359379,2599.2,2599.0,0.1528]
[1646989011511,0.00359379,2599.2,2598.9,0.2383389]
[1646989011707,2.81996392,2599.6,2598.9,0.2431389]
[1646989011708,1.85823202,2599.6,2598.9,0.2431389]
[1646989011958,0.00231938,2599.2,2598.9,0.2455389]
[1646989012162,0.00231938,2599.2,2598.9,0.2447389]
[1646989012756,0.00231938,2599.2,2598.9,0.2479389]
[1646989012958,0.89653202,2599.6,2598.9,0.2447389]
[1646989013161,0.89653202,2599.6,2598.9,0.2431389]
[1646989014062,0.89653202,2599.6,2598.9,0.2415389]
[1646989014261,0.89653202,2599.6,2598.9,0.2423389]
[1646989014765,0.89653202,2599.6,2598.9,0.2415389]
[1646989014962,0.89653202,2599.6,2598.9,0.2407389]
[1646989015263,0.05089469,2599.5,2598.9,0.2367389]
[1646989015462,0.05089469,2599.5,2598.9,0.2351389]
[1646989015703,0.05089469,2599.5,2598.9,0.2375389]
[1646989015903,0.05089469,2599.5,2598.9,0.2367389]
[1646989016303,0.05089469,2599.5,2598.9,0.2375389]
[1646989016703,0.05089469,2599.5,2598.9,0.2399389]
[1646989016903,0.05089469,2599.5,2598.9,0.2415389]
[1646989017503,0.05089469,2599.5,2598.9,0.2423389]
[1646989017906,0.05089469,2599.5,2598.9,0.2415389]
[1646989018105,0.05089469,2599.5,2598.9,0.2399389]
[1646989018510,0.05089469,2599.5,2598.9,0.2423389]
[1646989019210,0.05089469,2599.5,2598.9,0.2415389]
[1646989019455,0.05089469,2599.5,2598.9,0.2423389]
[1646989019653,0.05089469,2599.5,2598.9,0.2447389]
[1646989019859,0.05089469,2599.5,2598.9,0.2423389]
[1646989020454,0.05089469,2599.5,2598.9,0.2415389]
[1646989020656,0.05089469,2599.5,2598.9,0.2383389]
[1646989020855,0.05089469,2599.5,2598.9,0.2367389]
[1646989021259,0.05089469,2599.5,2598.9,0.2375389]
[1646989021657,0.05089469,2599.5,2598.9,0.2383389]
[1646989021856,0.05089469,2599.5,2598.9,0.2391389]
[1646989022057,0.05089469,2599.5,2598.9,0.2415389]
[1646989022257,0.05089469,2599.5,2598.9,0.2407389]
[1646989022461,0.05089469,2599.5,2598.9,0.2415389]
[1646989022659,0.05089469,2599.5,2598.9,0.2407389]
[1646989022856,0.05089469,2599.5,2598.9,0.2423389]
[1646989023102,0.05089469,2599.5,2598.9,0.2415389]
[1646989023307,0.05089469,2599.5,2598.9,0.2439389]
[1646989023506,0.05089469,2599.5,2598.9,0.2415389]
[1646989023708,0.05089469,2599.5,2598.9,0.2431389]
[1646989024507,0.05089469,2599.5,2598.9,0.2415389]
[1646989024707,0.05089469,2599.5,2598.9,0.2423389]
[1646989025111,0.05089469,2599.5,2598.9,0.2431389]
[1646989025311,0.05089469,2599.5,2598.9,0.2439389]
[1646989025510,0.05089469,2599.5,2598.9,0.2431389]
[1646989025710,0.05089469,2599.5,2598.9,0.2439389]
[1646989025912,0.05089469,2599.5,2598.9,0.2455389]
[1646989026209,0.05089469,2599.5,2598.9,0.2447389]
[1646989026510,0.05089469,2599.5,2598.9,0.2431389]
[1646989026959,0.05089469,2599.5,2598.9,0.2399389]
[1646989027161,0.05089469,2599.5,2598.9,0.2407389]
[1646989027362,0.05089469,2599.5,2598.9,0.2415389]
[1646989027764,0.05089469,2599.5,2598.9,0.2423389]
[1646989027959,0.05089469,2599.5,2598.9,0.2415389]
[1646989028158,0.05089469,2599.5,2598.9,0.2407389]
[1646989029160,0.05089469,2599.5,2598.9,0.2383389]
[1646989029361,0.05089469,2599.5,2598.9,0.2367389]
[1646989029561,0.05089469,2599.5,2598.9,0.2375389]
[1646989029762,0.05089469,2599.5,2598.9,0.2359389]
[1646989029963,0.05089469,2599.5,2598.8,0.3379]
[1646989029964,1.01267469,2599.5,2598.8,0.3379]
[1646989030163,1.01267469,2599.5,2598.8,0.1923]
[1646989032106,0.85620216,2599.1,2598.8,0.1923]
[1646989032307,0.85620216,2599.1,2598.6,0.1584]
[1646989032507,0.05196925,2599.0,2598.5,0.1472]
[1646989032711,0.05196925,2599.0,2598.4,0.152]
[1646989032913,0.05196925,2599.0,2598.3,0.13819997]
[1646989033414,1.02319355,2598.6,2598.3,0.13819997]
[1646989033614,1.02175746,2598.6,2598.3,0.13819997]
[1646989035463,1.02175746,2598.6,2598.2,0.00385846]
[1646989035660,1.02175746,2598.6,2598.0,0.23924032]
[1646989035863,1.02175746,2598.6,2598.0,0.24244032]
[1646989036060,1.02175746,2598.6,2598.2,0.00385846]
[1646989036861,1.02175746,2598.6,2598.0,0.23764032]
[1646989037066,1.02175746,2598.6,2598.0,0.23844032]
[1646989037266,1.02175746,2598.6,2598.2,0.00385843]
[1646989038211,1.01394925,2599.0,2598.0,3.74084032]
[1646989038418,0.0543678,2598.8,2598.2,0.00385843]
[1646989038611,0.04139968,2599.0,2598.2,0.00385843]
[1646989039411,0.83896115,2598.7,2598.2,0.152]
[1646989039611,0.83896115,2598.7,2598.2,0.15556886]
[1646989039811,0.83896115,2598.7,2598.2,0.15236886]
[1646989040016,0.83896115,2598.7,2598.2,0.15316886]
[1646989040213,0.83896115,2598.7,2598.2,0.15236886]
[1646989040412,0.83896115,2598.7,2598.2,0.1496]
[1646989040812,0.83896115,2598.7,2598.2,0.15236878]
[1646989041016,0.04139968,2599.0,2598.2,0.15316878]
[1646989041215,0.04139968,2599.0,2598.2,3.65716878]
[1646989041417,0.04139968,2599.0,2598.2,0.16276878]
[1646989041615,0.04139968,2599.0,2598.3,0.152]
[1646989041868,0.04139968,2599.0,2598.3,0.1923]
[1646989042058,0.04139968,2599.0,2598.3,0.3435]
[1646989042258,0.04139968,2599.0,2598.3,0.3411]
[1646989042458,0.04139968,2599.0,2598.4,0.1448]
[1646989042657,1.133,2599.1,2598.4,0.1448]
[1646989042658,1.133,2599.1,2598.5,0.081636]
[1646989042860,8.18224408,2599.3,2598.5,0.081636]
[1646989042861,7.51266258,2599.3,2598.5,0.081636]
[1646989043061,1.0,2600.3,2598.7,0.07166311]
[1646989043062,0.77522274,2600.3,2598.7,0.07166311]
[1646989043269,0.00357689,2599.6,2599.0,0.01259813]
[1646989043466,0.00357689,2599.6,2598.8,5.8834]
[1646989043467,7.689e-05,2599.6,2599.5,0.01248472]
[1646989043668,7.689e-05,2599.6,2599.5,2.08113223]
[1646989043865,7.689e-05,2599.6,2599.5,13.51043289]
[1646989044064,0.01430118,2600.7,2599.6,0.08178405]
[1646989044267,0.01430118,2600.7,2599.9,0.96099]
[1646989044466,0.01430118,2600.7,2600.1,0.08449888]
[1646989044666,1.00317611,2601.4,2600.6,0.07154658]
[1646989044866,1.00317611,2601.4,2600.7,0.08095384]
[1646989045266,1.00317611,2601.4,2600.6,0.156]
[1646989045466,1.00317611,2601.4,2600.7,0.96087]
[1646989045712,1.00317611,2601.4,2600.8,0.09003316]
[1646989045921,1.00317611,2601.4,2600.8,0.23563316]
[1646989046115,0.9609,2602.1,2600.8,0.09003316]
[1646989046116,0.96105,2601.8,2600.8,0.09003316]
[1646989046415,0.96105,2601.8,2600.7,0.1448]
[1646989046416,1.58255432,2601.7,2600.5,0.1544]
[1646989046616,1.58255432,2601.6,2600.7,0.144]
[1646989046817,1.58255432,2601.5,2600.5,0.44137961]
[1646989047017,2.92223,2602.0,2600.6,0.1512]
[1646989047018,1.0,2602.0,2600.6,0.1512]
[1646989047218,0.93535567,2601.5,2600.8,0.98470725]
[1646989047417,0.04421965,2601.9,2600.9,0.07814696]
[1646989047622,0.462,2602.4,2600.9,0.07814696]
[1646989047623,0.04148489,2602.5,2600.9,3.57814696]
[1646989047822,0.04148489,2602.5,2601.0,0.2624252]
[1646989047823,1.58222208,2602.4,2601.0,0.2624252]
[1646989048019,1.58222208,2602.4,2601.0,0.4176252]
[1646989048219,0.00416492,2601.5,2601.1,3.6536]
[1646989048425,0.00416492,2601.5,2601.2,0.26935974]
[1646989048622,0.00416492,2601.5,2601.2,0.3378]
[1646989048822,0.00416492,2601.5,2601.2,0.96078]
[1646989049024,1.0,2601.9,2601.3,0.24059219]
[1646989049221,1.0,2601.9,2601.3,0.25019219]
[1646989049471,0.00171785,2601.5,2601.3,3.74699219]
[1646989049669,0.00171785,2601.5,2601.4,0.07039051]
[1646989049868,0.00171785,2601.5,2601.4,3.57039051]
[1646989050074,0.00171785,2601.5,2601.4,3.72639051]
[1646989050372,0.00687037,2601.9,2601.4,3.72639051]
[1646989050373,0.88358052,2602.0,2601.5,0.07773244]
[1646989050572,0.00171785,2601.6,2601.5,0.07773244]
[1646989051173,0.00171785,2601.6,2601.2,0.1576]
[1646989051370,0.89045088,2602.0,2601.2,0.1576]
[1646989051572,0.88358052,2602.0,2601.2,3.73937471]
[1646989051770,0.03455872,2601.6,2601.3,0.07677918]
[1646989051971,0.03455872,2601.6,2601.3,0.24077918]
[1646989052272,0.03455872,2601.6,2601.3,1.20147918]
[1646989052471,0.03455872,2601.6,2601.4,0.22869104]
[1646989052671,0.03455872,2601.6,2601.4,0.22949104]
[1646989052873,0.03872798,2601.6,2601.4,0.22949104]
[1646989053122,0.03872798,2601.6,2601.4,0.24149104]
[1646989053335,0.03872798,2601.6,2601.4,0.25909104]
[1646989053529,0.03872798,2601.6,2601.4,0.26389104]
[1646989053722,0.03872798,2601.6,2601.4,0.26709104]
[1646989053925,0.03455872,2601.6,2601.5,0.8454]
[1646989054126,0.00171601,2601.6,2601.5,4.3454]
[1646989054324,0.00171601,2601.6,2601.5,5.30576]
[1646989054522,1.601e-05,2601.6,2601.5,17.23299359]
[1646989054725,6.302e-05,2602.0,2601.7,12.0834]
[1646989054924,6.302e-05,2602.0,2601.9,12.0834]
[1646989055123,0.00706379,2602.4,2601.9,16.3334469]
[1646989055327,0.00706379,2602.4,2602.0,4.27056]
[1646989055525,0.00706379,2602.4,2602.3,0.94267304]
[1646989055725,0.99838299,2603.1,2602.3,0.94267304]
[1646989056028,1.1517,2603.7,2602.3,4.63627304]
[1646989056225,1.00163816,2603.9,2602.7,0.96019]
[1646989056624,0.00171217,2602.8,2602.7,0.96019]
[1646989056861,0.00171217,2602.8,2602.7,2.02661444]
[1646989057063,0.00171217,2602.8,2602.7,2.18581444]
[1646989057263,0.00171217,2602.8,2602.7,2.18661444]
[1646989057464,1.10819484,2603.5,2602.7,2.19061444]
[1646989057665,0.00417059,2602.9,2602.7,2.19141444]
[1646989057863,0.00417059,2602.9,2602.8,0.1576]
[1646989058365,0.00417059,2602.9,2602.8,0.1552]
[1646989058572,0.00417059,2602.9,2602.8,0.1536]
[1646989058767,1.10819484,2603.5,2602.8,0.1536]
[1646989058768,1.10819484,2603.5,2602.8,0.1496]
[1646989058969,0.00417049,2603.0,2602.8,0.1488]
[1646989059171,0.98858876,2603.0,2602.6,0.152]
[1646989059370,0.00417049,2603.0,2602.3,4.66071354]
[1646989059569,0.00417049,2603.0,2602.4,0.1688]
[1646989059769,0.00417049,2603.0,2602.4,3.672]
[1646989059969,1.92061,2603.9,2602.4,3.6728]
[1646989060171,1.92061,2603.9,2602.5,0.1664]
[1646989060172,0.00417068,2602.8,2602.5,0.1664]
[1646989060371,0.00417068,2602.8,2602.5,1.12821]
[1646989060612,0.00417068,2602.8,2602.6,0.1552]
[1646989060810,0.00417068,2602.8,2602.6,0.1592]
[1646989061011,0.00706956,2603.0,2602.6,0.1616]
[1646989061219,0.00706956,2603.0,2602.6,0.1576]
[1646989061420,0.00417064,2602.8,2602.6,0.1576]
[1646989061616,0.00417064,2602.8,2602.6,0.1552]
[1646989062016,0.00417064,2602.8,2602.6,0.156]
[1646989062217,0.00706956,2603.0,2602.7,0.148]
[1646989062418,0.00706956,2603.0,2602.6,0.156]
[1646989062619,0.00409244,2602.8,2602.6,0.1592]
[1646989062921,0.00409244,2602.8,2602.6,0.1608]
[1646989063117,0.00409244,2602.8,2602.7,0.1528]
[1646989063318,0.00409244,2602.8,2602.6,0.1584]
[1646989063518,0.00706956,2603.0,2602.6,0.1584]
[1646989063726,0.00409244,2602.8,2602.6,0.1568]
[1646989064120,0.00409244,2602.8,2602.6,0.23131569]
[1646989064355,0.00409244,2602.8,2602.6,0.23051569]
[1646989064556,0.00409244,2602.8,2602.6,0.1544]
[1646989064758,0.00171141,2602.8,2602.5,0.069358]
[1646989064958,0.00171141,2602.8,2602.5,0.231758]
[1646989065162,0.00171141,2602.8,2602.5,0.232558]
[1646989065361,0.00171141,2602.8,2602.5,0.069358]
[1646989065764,0.99232153,2602.9,2602.4,0.1528]
[1646989065963,0.99232153,2602.9,2602.2,0.24021078]
[1646989066165,0.99232153,2602.9,2602.2,0.23061078]
[1646989066166,0.00388067,2602.8,2602.2,0.23061078]
[1646989066366,0.00388067,2602.8,2602.2,0.22821078]
[1646989066565,0.00388067,2602.8,2602.2,0.07221078]
[1646989067062,0.99232153,2602.9,2602.2,0.22981078]
[1646989067266,0.00388079,2602.6,2602.2,0.07221078]
[1646989067667,0.00388079,2602.6,2602.3,0.1464]
[1646989067867,0.00388079,2602.6,2602.2,0.07221078]
[1646989068131,0.00388079,2602.6,2602.4,0.1504]
[1646989068334,0.99232153,2602.9,2602.2,0.23941078]
[1646989068535,0.00388087,2602.5,2602.2,0.23941078]
[1646989068735,0.00388087,2602.5,2602.2,0.23781078]
[1646989068938,0.00388087,2602.5,2602.2,0.23861078]
[1646989069134,0.00388087,2602.5,2602.2,0.23781078]
[1646989069338,0.00388087,2602.5,2602.2,0.23541078]
[1646989069537,0.95066648,2602.6,2602.2,0.23141078]
[1646989069742,0.00398831,2602.5,2602.2,0.1544]
[1646989069939,0.00398831,2602.5,2602.0,0.144]
[1646989070139,0.00398831,2602.5,2601.9,0.21812546]
[1646989070340,0.00398831,2602.5,2601.9,0.21652546]
[1646989070541,0.00398831,2602.5,2601.9,0.07172546]
[1646989070740,0.95773258,2602.6,2601.9,0.07172546]
[1646989070941,0.00398844,2602.3,2601.9,0.22692546]
[1646989071341,0.00398844,2602.3,2601.9,0.22612546]
[1646989071644,0.00398844,2602.3,2601.9,0.22692546]
[1646989071874,0.95773258,2602.6,2601.9,0.22612546]
[1646989072064,0.00398853,2602.2,2601.9,0.22612546]
[1646989072264,0.00398853,2602.2,2601.9,1.19139546]
[1646989072463,0.00398853,2602.2,2602.0,0.07865079]
[1646989072665,0.00398853,2602.2,2602.0,0.23945079]
[1646989072865,0.00398853,2602.2,2602.0,0.23785079]
[1646989073065,0.95773258,2602.6,2602.0,0.23785079]
[1646989073270,0.00386723,2602.2,2602.0,0.22265079]
[1646989073469,0.00386723,2602.2,2602.0,0.07865079]
[1646989074275,0.95773258,2602.6,2602.0,0.07865079]
[1646989074471,0.00386723,2602.2,2602.0,0.07865079]
[1646989074870,0.00386723,2602.2,2602.0,0.22505079]
[1646989075072,0.00386723,2602.2,2602.0,0.07865079]
[1646989075470,0.0070661,2602.6,2602.0,0.07865079]
[1646989075714,0.00386723,2602.2,2602.0,0.07865079]
[1646989076317,0.00386723,2602.2,2602.0,0.25385079]
[1646989076719,1.2008,2603.4,2602.0,0.25545079]
[1646989076919,1.2008,2603.4,2602.0,0.25625079]
[1646989076920,0.00387542,2602.2,2602.0,0.25625079]
[1646989077217,0.00387542,2602.2,2602.0,0.24825079]
[1646989077218,0.00268193,2602.2,2602.0,0.24825079]
[1646989077417,0.00268193,2602.2,2602.0,0.23465079]
[1646989077618,0.00268193,2602.2,2602.0,0.23385079]
[1646989077818,0.99738873,2602.7,2602.0,0.23305079]
[1646989078218,0.99738873,2602.7,2602.0,0.23465079]
[1646989078421,0.99738873,2602.7,2602.0,0.23625079]
[1646989078618,0.99738873,2602.7,2602.0,0.23225079]
[1646989078819,0.99738873,2602.7,2602.0,0.22585079]
[1646989079017,0.99738873,2602.7,2602.0,0.07865079]
[1646989079468,0.00170707,2602.5,2602.0,0.07865079]
[1646989079868,0.00170707,2602.5,2602.0,0.23225079]
[1646989080070,0.00170707,2602.5,2602.0,0.07865079]
[1646989080369,0.50987698,2603.3,2602.0,0.07865079]
[1646989080370,0.00706725,2602.7,2602.0,0.07865079]
[1646989080570,0.00706725,2602.7,2602.0,0.24505079]
[1646989080870,0.00419276,2602.4,2602.0,0.07865079]
[1646989081070,0.00419276,2602.4,2602.1,0.156]
[1646989081371,0.00419276,2602.4,2602.2,0.85325382]
[1646989081571,0.00706725,2602.7,2602.2,0.85325382]
[1646989081770,0.00706725,2602.7,2602.0,0.07865079]
[1646989081771,0.00706725,2602.7,2602.3,0.08393896]
[1646989081975,0.00419276,2602.4,2601.9,0.24262282]
[1646989082173,0.00419276,2602.4,2601.9,0.24342282]
[1646989082372,0.00419276,2602.4,2601.9,0.24422282]
[1646989082574,0.00419276,2602.4,2601.9,0.24262282]
[1646989082773,0.00706725,2602.7,2602.0,1.01271525]
[1646989083120,0.00419285,2602.3,2602.1,0.07246924]
[1646989083327,0.00419285,2602.3,2602.1,0.22286924]
[1646989083529,0.00419285,2602.3,2602.1,0.22366924]
[1646989083927,0.00706725,2602.7,2602.1,0.22286924]
[1646989084128,0.00419281,2602.3,2602.1,3.72286924]
[1646989084331,0.00419281,2602.3,2602.1,3.72446924]
[1646989084532,0.00419281,2602.3,2602.1,0.22366924]
[1646989084729,0.00419281,2602.3,2602.2,0.144]
[1646989084929,0.00419281,2602.3,2602.1,0.22206924]
[1646989085132,0.00706725,2602.7,2602.1,0.22046924]
[1646989085332,0.00417081,2602.3,2602.1,0.21806924]
[1646989085730,0.00417081,2602.3,2602.1,0.21886924]
[1646989085929,0.00417081,2602.3,2602.1,0.21806924]
[1646989086131,0.00417081,2602.3,2602.1,0.21675769]
[1646989086331,0.92241727,2602.8,2602.1,0.21755769]
[1646989086631,0.00417081,2602.3,2602.2,0.07578388]
[1646989087066,0.00417081,2602.3,2602.2,0.24058388]
[1646989087468,1.0797319,2602.7,2602.2,0.23658388]
[1646989087667,1.0797319,2602.7,2602.2,0.23338388]
[1646989087969,0.00417076,2602.4,2602.2,0.23178388]
[1646989088166,0.00417076,2602.4,2602.2,0.23338388]
[1646989088368,0.00417076,2602.4,2602.2,0.23418388]
[1646989088768,1.0797319,2602.7,2602.2,0.23658388]
[1646989088969,0.00419271,2602.4,2602.2,0.23738388]
[1646989089171,0.00419271,2602.4,2602.2,0.07578388]
[1646989089969,1.6628,2603.4,2602.0,3.72772014]
[1646989090172,0.00419271,2602.4,2602.1,0.09044054]
[1646989090611,0.00419271,2602.4,2602.1,0.25204054]
[1646989090811,0.00419271,2602.4,2602.1,0.24804054]
[1646989091011,1.2008,2603.4,2602.1,0.09044054]
[1646989091214,1.2008,2603.4,2602.4,0.94548235]
[1646989091215,0.96612971,2603.1,2602.4,0.94548235]
[1646989091413,0.0167683,2602.8,2602.5,0.07689622]
[1646989092419,2.16122,2603.4,2602.5,0.07689622]
[1646989092621,1.58151812,2603.3,2602.5,0.07689622]
[1646989093322,0.70199455,2603.6,2602.5,0.07689622]
[1646989093323,1.58151812,2603.2,2602.5,0.07689622]
[1646989093519,1.58151812,2603.1,2602.5,0.07689622]
[1646989093721,1.05750205,2603.4,2602.5,0.07689622]
[1646989093722,1.58151812,2603.0,2602.5,0.07689622]
[1646989093922,1.05750205,2603.4,2602.5,0.07689622]
[1646989094220,1.5814416,2603.3,2602.5,0.07689622]
[1646989094665,1.5814416,2603.3,2602.5,3.57689622]
[1646989094871,0.0040702,2603.0,2602.6,0.07793061]
[1646989095165,0.835637,2603.0,2602.6,0.07793061]
[1646989095365,1.58147585,2602.9,2602.6,0.07793061]
[1646989096171,1.58552134,2602.9,2602.6,0.07793061]
[1646989096973,1.58552134,2602.9,2602.4,0.21918918]
[1646989097273,1.58147585,2602.9,2602.4,0.22078918]
[1646989097478,0.00705815,2603.3,2602.4,0.21998918]
[1646989097775,1.58148245,2603.2,2602.4,0.21918918]
[1646989097973,1.58148245,2603.2,2602.4,0.22718918]
[1646989098221,0.84897727,2603.1,2602.4,0.22158918]
[1646989098419,1.58148245,2603.0,2602.4,0.21838918]
[1646989098618,1.58148245,2603.0,2602.4,0.07278918]
[1646989099821,0.00404218,2602.8,2602.4,0.07278918]
[1646989100823,1.58148245,2603.0,2602.4,0.07278918]
[1646989101021,0.00404227,2602.7,2602.4,0.07278918]
[1646989101891,1.58148245,2603.0,2602.4,0.07278918]
[1646989102383,0.00404231,2602.7,2602.4,0.07278918]
[1646989103185,1.58148245,2603.0,2602.4,0.07278918]
[1646989103386,0.0038713,2602.7,2602.4,0.07278918]
[1646989104188,1.02558508,2602.6,2602.4,0.07278918]
[1646989104388,1.02558508,2602.6,2602.1,0.08947909]
[1646989104587,1.02558508,2602.6,2602.1,0.23907909]
[1646989104987,1.02558508,2602.6,2602.1,0.08947909]
[1646989105821,0.00387147,2602.5,2602.1,0.08947909]
[1646989106023,0.00387147,2602.5,2602.1,0.23907909]
[1646989106223,0.00387147,2602.5,2602.1,0.23987909]
[1646989106424,0.00387147,2602.5,2602.1,0.25107909]
[1646989106630,0.00387147,2602.5,2602.1,0.24707909]
[1646989106824,1.58166597,2602.8,2602.1,0.25347909]
[1646989107027,0.00171795,2602.4,2602.1,0.25027909]
[1646989107227,0.00171795,2602.4,2602.1,0.25267909]
[1646989107425,0.00171795,2602.4,2602.1,0.25027909]
[1646989107629,0.00057815,2602.4,2602.1,0.24707909]
[1646989107833,1.58166597,2602.7,2602.1,0.24627909]
[1646989108029,1.58166597,2602.7,2602.1,0.25187909]
[1646989108227,1.58166597,2602.7,2602.1,0.24707909]
[1646989108629,1.00734758,2602.8,2602.1,0.25507909]
[1646989108828,1.00734758,2602.8,2602.1,0.25267909]
[1646989108829,1.58169139,2602.7,2602.1,0.25267909]
[1646989109030,1.58169139,2602.7,2602.1,3.74227909]
[1646989109233,0.00940625,2603.0,2602.2,0.07775198]
[1646989109467,1.58168656,2602.9,2602.2,0.24175198]
[1646989109667,1.58168656,2602.9,2602.2,0.23455198]
[1646989110072,1.58168656,2602.9,2602.2,0.23375198]
[1646989110276,1.58168656,2602.9,2602.2,0.23695198]
[1646989110478,1.10943246,2602.7,2602.2,0.23695198]
[1646989110674,1.10943246,2602.7,2602.2,0.22735198]
[1646989110876,1.10943246,2602.7,2602.2,0.22895198]
[1646989111076,1.10943246,2602.7,2602.2,0.22335198]
[1646989111280,1.10943246,2602.7,2602.2,0.22415198]
[1646989111574,1.10943246,2602.7,2602.2,0.22495198]
[1646989111775,0.00420434,2602.6,2602.2,0.22415198]
[1646989111974,0.00420434,2602.6,2602.2,0.07775198]
[1646989112575,0.00420434,2602.6,2602.2,0.22735198]
[1646989112774,1.10943246,2602.7,2602.2,0.07775198]
[1646989113221,0.00420439,2602.5,2602.2,0.07775198]
[1646989114021,1.58178324,2602.6,2602.2,0.07775198]
[1646989114221,0.00420444,2602.5,2602.2,0.07775198]
[1646989115323,0.87678423,2602.3,2602.2,0.07775198]
[1646989115721,0.87678423,2602.3,2601.8,0.25]
[1646989115923,0.87678423,2602.3,2601.8,0.07816052]
[1646989116226,0.00973026,2602.5,2601.8,0.07816052]
[1646989116422,0.00565196,2602.5,2601.8,0.07816052]
[1646989116622,0.00395328,2602.4,2601.8,0.07816052]
[1646989117267,0.91185778,2602.3,2601.8,0.07816052]
[1646989118375,0.00395331,2602.4,2601.8,0.07816052]
[1646989118872,0.00565196,2602.5,2601.8,0.07816052]
[1646989119073,1.5856806,2602.4,2601.8,0.07816052]
[1646989119875,0.91808355,2602.5,2601.8,0.07816052]
[1646989120080,0.91808355,2602.5,2601.9,1.05354062]
[1646989120278,0.0037632,2602.4,2601.9,1.05354062]
[1646989120476,0.00706263,2602.3,2602.0,0.2268591]
[1646989120723,0.00706263,2602.3,2602.0,0.2324591]
[1646989120916,0.00706263,2602.3,2602.0,0.2308591]
[1646989121119,0.00706263,2602.3,2602.0,0.2292591]
[1646989121318,0.00706263,2602.3,2602.0,0.0820591]
[1646989122726,0.00706263,2602.3,2602.0,0.2260591]
[1646989123127,0.00706263,2602.3,2602.0,0.0820591]
[1646989125166,0.00706263,2602.3,2602.0,0.2292591]
[1646989125366,0.00706263,2602.3,2602.2,0.08358261]
[1646989125771,0.00359804,2602.4,2602.2,0.08358261]
[1646989125975,0.00717492,2602.5,2602.2,0.08358261]
[1646989126170,0.00717492,2602.5,2602.2,3.73158261]
[1646989126373,0.00360333,2602.4,2602.3,0.07507552]
[1646989126571,0.00360333,2602.4,2602.3,3.74547552]
[1646989126770,0.00360333,2602.4,2602.3,3.74627552]
[1646989126970,0.00360333,2602.4,2602.3,3.74307552]
[1646989127171,0.00717492,2602.5,2602.3,3.74867552]
[1646989127371,0.00717492,2602.5,2602.4,0.09025981]
[1646989127572,0.00717492,2602.5,2602.4,0.25105981]
[1646989127775,0.00717492,2602.5,2602.4,0.25185981]
[1646989127976,0.00717492,2602.5,2602.4,0.1552]
[1646989128229,0.00717492,2602.5,2602.4,0.1576]
[1646989128426,0.00717492,2602.5,2602.3,0.23095684]
[1646989128634,0.00717492,2602.5,2602.3,0.07175684]
[1646989128826,0.00717492,2602.5,2602.4,0.1488]
[1646989129027,0.00717492,2602.5,2602.3,0.07175684]
[1646989130531,1.92109,2603.0,2602.3,0.07175684]
[1646989130728,1.58167729,2602.9,2602.3,0.07175684]
[1646989131138,0.00394998,2602.5,2602.3,0.07175684]
[1646989131530,0.00293486,2602.5,2602.2,0.1528]
[1646989131732,0.00293486,2602.5,2602.0,0.25499332]
[1646989131973,0.84911706,2602.7,2602.0,0.25259332]
[1646989132172,0.84911706,2602.7,2602.0,0.08859332]
[1646989132375,0.84911706,2602.7,2602.0,0.25579332]
[1646989132572,0.84911706,2602.7,2602.0,0.25019332]
[1646989132772,0.84911706,2602.7,2602.1,0.1536]
[1646989132974,0.84911706,2602.7,2602.0,0.25099332]
[1646989133177,0.84911706,2602.7,2602.0,1.25023019]
[1646989133379,0.84911706,2602.7,2602.1,0.08554732]
[1646989133579,0.84911706,2602.7,2602.1,0.24794732]